{"text_format":"3","workbook":"xlsx","n_sheets":4,"sheets":["Budžeta pārskats","Budžeta kopsavilkums","Ikmēneša izdevumi","Papildu dati"],"not_rendered":{"charts":1,"images":4,"defined_names":7,"pivot_tables":2},"read":"whole","date_system":"1900"}

{"sheet":"Budžeta pārskats","index":0,"n_rows":12,"n_cols":8,"rows_kept":12,"merged":[[2,1,2,2],[3,1,3,2],[4,1,4,2]]}
[{"$nulls":7}," "]
[null,"Bilance"]
[null,"Plānotā bilance",null,{"$f":"Plānotie_ienākumi-Plānotie_izdevumi","v":{"v":1585,"d":"1,585 EUR"}},null,"Prognozētie mīnus izdevumi"]
[null,"Faktiskā bilance ",null,{"$f":"Faktiskie_ienākumi-Faktiskie_izdevumi","v":{"v":1740,"d":"1,740 EUR"}},null,"Faktiskie mīnus izdevumi"]
[null,"Starpība",null,{"$f":"D4-D3","v":{"v":155,"d":"155 EUR"}},null,"Faktiskie mīnus plānotie"]
[null,"Ienākumi",{"$nulls":3},"Izdevumi"]
[null,null,"Prognozētie","Faktiskie",null,"Prognozētie","Faktiskie"]
[null,"Ienākumi 1",{"v":6000,"d":"6,000 EUR"},{"v":5800,"d":"5,800 EUR"},null,{"$f":"SUM(Mēneša_izdevumu_tabula[Plānotās izmaksas])","v":{"v":7915,"d":"7,915 EUR"}},{"$f":"SUM(Mēneša_izdevumu_tabula[Faktiskās izmaksas])","v":{"v":7860,"d":"7,860 EUR"}}]
[null,"Ienākumi 2",{"v":1000,"d":"1,000 EUR"},{"v":2300,"d":"2,300 EUR"}]
[null,"Papildu ienākumi",{"v":2500,"d":"2,500 EUR"},{"v":1500,"d":"1,500 EUR"}]
[null,"Kopējie ienākumi",{"$f":"SUM(C8:C10)","v":{"v":9500,"d":"9,500 EUR"}},{"$f":"SUM(D8:D10)","v":{"v":9600,"d":"9,600 EUR"}}]
[null,"Faktisko izdevumu sadalījums"]

{"sheet":"Budžeta kopsavilkums","index":1,"n_rows":43,"n_cols":7,"rows_kept":43}
[null,"Budžeta kopsavilkums",{"$nulls":4}," "]
[]
[null,"Kategorijas","Plānotās izmaksas ","Faktiskās izmaksas ","Starpība "]
[null,"Aizdevumi",{"v":200,"d":"200 EUR"},{"v":200,"d":"200 EUR"},{"v":0,"d":"0 EUR"}]
[null,"Kredītkarte 1",{"v":200,"d":"200 EUR"},{"v":200,"d":"200 EUR"},{"v":0,"d":"0 EUR"}]
[null,"Kredītkarte 2",null,null,{"v":0,"d":"0 EUR"}]
[null,"Kredītkarte 3",null,null,{"v":0,"d":"0 EUR"}]
[null,"Mācību",null,null,{"v":0,"d":"0 EUR"}]
[null,"Personisks",null,null,{"v":0,"d":"0 EUR"}]
[]
[null,"Apdrošināšana",{"v":900,"d":"900 EUR"},{"v":900,"d":"900 EUR"},{"v":0,"d":"0 EUR"}]
[null,"Dzīvība",{"v":100,"d":"100 EUR"},{"v":100,"d":"100 EUR"},{"v":0,"d":"0 EUR"}]
[null,"Mājas",{"v":400,"d":"400 EUR"},{"v":400,"d":"400 EUR"},{"v":0,"d":"0 EUR"}]
[null,"Veselība",{"v":400,"d":"400 EUR"},{"v":400,"d":"400 EUR"},{"v":0,"d":"0 EUR"}]
[]
[null,"Bērni",{"v":140,"d":"140 EUR"},{"v":140,"d":"140 EUR"},{"v":0,"d":"0 EUR"}]
[]
[null,"Dāvanas un labdarība",{"v":100,"d":"100 EUR"},{"v":125,"d":"125 EUR"},{"v":-25,"d":"-25 EUR"}]
[]
[null,"Ietaupījumi",{"v":200,"d":"200 EUR"},{"v":200,"d":"200 EUR"},{"v":0,"d":"0 EUR"}]
[]
[null,"Izklaide",{"v":400,"d":"400 EUR"},{"v":358,"d":"358 EUR"},{"v":42,"d":"42 EUR"}]
[]
[null,"Mājdzīvnieki",{"v":170,"d":"170 EUR"},{"v":100,"d":"100 EUR"},{"v":70,"d":"70 EUR"}]
[]
[null,"Mājoklis",{"v":2830,"d":"2,830 EUR"},{"v":2702,"d":"2,702 EUR"},{"v":-72,"d":"-72 EUR"}]
[]
[null,"Nodokļi",{"v":300,"d":"300 EUR"},{"v":300,"d":"300 EUR"},{"v":0,"d":"0 EUR"}]
[]
[null,"Pārtika",{"v":1100,"d":"1,100 EUR"},{"v":1320,"d":"1,320 EUR"},{"v":-220,"d":"-220 EUR"}]
[]
[null,"Personiskā higiēna",{"v":150,"d":"150 EUR"},{"v":140,"d":"140 EUR"},{"v":10,"d":"10 EUR"}]
[]
[null,"Transports",{"v":1425,"d":"1,425 EUR"},{"v":1375,"d":"1,375 EUR"},{"v":50,"d":"50 EUR"}]
[null,"Apdrošināšana",{"v":300,"d":"300 EUR"},{"v":300,"d":"300 EUR"},{"v":0,"d":"0 EUR"}]
[null,"Degviela",{"v":450,"d":"450 EUR"},{"v":400,"d":"400 EUR"},{"v":50,"d":"50 EUR"}]
[null,"Izdevumi par autostāvvietu",null,null,{"v":0,"d":"0 EUR"}]
[null,"Licencēšana ",{"v":25,"d":"25 EUR"},{"v":25,"d":"25 EUR"},{"v":0,"d":"0 EUR"}]
[null,"Maksa par braucienu ar autobusu/taksometru",{"v":100,"d":"100 EUR"},{"v":150,"d":"150 EUR"},{"v":-50,"d":"-50 EUR"}]
[null,"Maksājums par transportlīdzekli",{"v":450,"d":"450 EUR"},{"v":450,"d":"450 EUR"},{"v":0,"d":"0 EUR"}]
[null,"Uzturēšana",{"v":100,"d":"100 EUR"},{"v":50,"d":"50 EUR"},{"v":50,"d":"50 EUR"}]
[]
[null,"Gala summa",{"v":7915,"d":"7,915 EUR"},{"v":7860,"d":"7,860 EUR"},{"v":-145,"d":"-145 EUR"}]

{"sheet":"Ikmēneša izdevumi","index":2,"n_rows":61,"n_cols":8,"rows_kept":61}
[{"$nulls":7}," "]
[null,"Apraksts","Kategorija","Plānotās izmaksas","Faktiskās izmaksas","Starpība","Faktisko izmaksu pārskats"]
[null,"Ārpusklases nodarbības","Bērni",{"v":40,"d":"40 EUR"},{"v":40,"d":"40 EUR"},{"$f":"IF(OR(Mēneša_izdevumu_tabula[[#This Row],[Plānotās izmaksas]]=\"\",Mēneša_izdevumu_tabula[[#This Row],[Faktiskās izmaksas]]=\"\"),\"\",Mēneša_izdevumu_tabula[[#This Row],[Plānotās izmaksas]]-Mēneša_izdevumu_tabula[[#This Row],[Faktiskās izmaksas]])","v":{"v":0,"d":"0 EUR"}},{"$f":"Mēneša_izdevumu_tabula[[#This Row],[Faktiskās izmaksas]]","v":40}]
[null,"Medikamenti","Bērni",null,null,{"$f":"IF(OR(Mēneša_izdevumu_tabula[[#This Row],[Plānotās izmaksas]]=\"\",Mēneša_izdevumu_tabula[[#This Row],[Faktiskās izmaksas]]=\"\"),\"\",Mēneša_izdevumu_tabula[[#This Row],[Plānotās izmaksas]]-Mēneša_izdevumu_tabula[[#This Row],[Faktiskās izmaksas]])","v":""},{"$f":"Mēneša_izdevumu_tabula[[#This Row],[Faktiskās izmaksas]]","v":0}]
[null,"Skolas piederumi","Bērni",null,null,{"$f":"IF(OR(Mēneša_izdevumu_tabula[[#This Row],[Plānotās izmaksas]]=\"\",Mēneša_izdevumu_tabula[[#This Row],[Faktiskās izmaksas]]=\"\"),\"\",Mēneša_izdevumu_tabula[[#This Row],[Plānotās izmaksas]]-Mēneša_izdevumu_tabula[[#This Row],[Faktiskās izmaksas]])","v":""},{"$f":"Mēneša_izdevumu_tabula[[#This Row],[Faktiskās izmaksas]]","v":0}]
[null,"Mācību maksa","Bērni",{"v":100,"d":"100 EUR"},{"v":100,"d":"100 EUR"},{"$f":"IF(OR(Mēneša_izdevumu_tabula[[#This Row],[Plānotās izmaksas]]=\"\",Mēneša_izdevumu_tabula[[#This Row],[Faktiskās izmaksas]]=\"\"),\"\",Mēneša_izdevumu_tabula[[#This Row],[Plānotās izmaksas]]-Mēneša_izdevumu_tabula[[#This Row],[Faktiskās izmaksas]])","v":{"v":0,"d":"0 EUR"}},{"$f":"Mēneša_izdevumu_tabula[[#This Row],[Faktiskās izmaksas]]","v":100}]
[null,"Koncerti","Izklaide",{"v":50,"d":"50 EUR"},{"v":40,"d":"40 EUR"},{"$f":"IF(OR(Mēneša_izdevumu_tabula[[#This Row],[Plānotās izmaksas]]=\"\",Mēneša_izdevumu_tabula[[#This Row],[Faktiskās izmaksas]]=\"\"),\"\",Mēneša_izdevumu_tabula[[#This Row],[Plānotās izmaksas]]-Mēneša_izdevumu_tabula[[#This Row],[Faktiskās izmaksas]])","v":{"v":10,"d":"10 EUR"}},{"$f":"Mēneša_izdevumu_tabula[[#This Row],[Faktiskās izmaksas]]","v":40}]
[null,"Teātris","Izklaide",{"v":200,"d":"200 EUR"},{"v":150,"d":"150 EUR"},{"$f":"IF(OR(Mēneša_izdevumu_tabula[[#This Row],[Plānotās izmaksas]]=\"\",Mēneša_izdevumu_tabula[[#This Row],[Faktiskās izmaksas]]=\"\"),\"\",Mēneša_izdevumu_tabula[[#This Row],[Plānotās izmaksas]]-Mēneša_izdevumu_tabula[[#This Row],[Faktiskās izmaksas]])","v":{"v":50,"d":"50 EUR"}},{"$f":"Mēneša_izdevumu_tabula[[#This Row],[Faktiskās izmaksas]]","v":150}]
[null,"Filmas","Izklaide",{"v":50,"d":"50 EUR"},{"v":28,"d":"28 EUR"},{"$f":"IF(OR(Mēneša_izdevumu_tabula[[#This Row],[Plānotās izmaksas]]=\"\",Mēneša_izdevumu_tabula[[#This Row],[Faktiskās izmaksas]]=\"\"),\"\",Mēneša_izdevumu_tabula[[#This Row],[Plānotās izmaksas]]-Mēneša_izdevumu_tabula[[#This Row],[Faktiskās izmaksas]])","v":{"v":22,"d":"22 EUR"}},{"$f":"Mēneša_izdevumu_tabula[[#This Row],[Faktiskās izmaksas]]","v":28}]
[null,"Mūzika (CD, lejupielādes utt.)","Izklaide",{"v":50,"d":"50 EUR"},{"v":30,"d":"30 EUR"},{"$f":"IF(OR(Mēneša_izdevumu_tabula[[#This Row],[Plānotās izmaksas]]=\"\",Mēneša_izdevumu_tabula[[#This Row],[Faktiskās izmaksas]]=\"\"),\"\",Mēneša_izdevumu_tabula[[#This Row],[Plānotās izmaksas]]-Mēneša_izdevumu_tabula[[#This Row],[Faktiskās izmaksas]])","v":{"v":20,"d":"20 EUR"}},{"$f":"Mēneša_izdevumu_tabula[[#This Row],[Faktiskās izmaksas]]","v":30}]
[null,"Sporta pasākumi","Izklaide",{"v":0,"d":"0 EUR"},{"v":40,"d":"40 EUR"},{"$f":"IF(OR(Mēneša_izdevumu_tabula[[#This Row],[Plānotās izmaksas]]=\"\",Mēneša_izdevumu_tabula[[#This Row],[Faktiskās izmaksas]]=\"\"),\"\",Mēneša_izdevumu_tabula[[#This Row],[Plānotās izmaksas]]-Mēneša_izdevumu_tabula[[#This Row],[Faktiskās izmaksas]])","v":{"v":-40,"d":"-40 EUR"}},{"$f":"Mēneša_izdevumu_tabula[[#This Row],[Faktiskās izmaksas]]","v":40}]
[null,"Video/DVD (iegāde)","Izklaide",{"v":20,"d":"20 EUR"},{"v":50,"d":"50 EUR"},{"$f":"IF(OR(Mēneša_izdevumu_tabula[[#This Row],[Plānotās izmaksas]]=\"\",Mēneša_izdevumu_tabula[[#This Row],[Faktiskās izmaksas]]=\"\"),\"\",Mēneša_izdevumu_tabula[[#This Row],[Plānotās izmaksas]]-Mēneša_izdevumu_tabula[[#This Row],[Faktiskās izmaksas]])","v":{"v":-30,"d":"-30 EUR"}},{"$f":"Mēneša_izdevumu_tabula[[#This Row],[Faktiskās izmaksas]]","v":50}]
[null,"Video/DVD (noma)","Izklaide",{"v":30,"d":"30 EUR"},{"v":20,"d":"20 EUR"},{"$f":"IF(OR(Mēneša_izdevumu_tabula[[#This Row],[Plānotās izmaksas]]=\"\",Mēneša_izdevumu_tabula[[#This Row],[Faktiskās izmaksas]]=\"\"),\"\",Mēneša_izdevumu_tabula[[#This Row],[Plānotās izmaksas]]-Mēneša_izdevumu_tabula[[#This Row],[Faktiskās izmaksas]])","v":{"v":10,"d":"10 EUR"}},{"$f":"Mēneša_izdevumu_tabula[[#This Row],[Faktiskās izmaksas]]","v":20}]
[null,"Ēšana ārpus mājas","Pārtika",{"v":1000,"d":"1,000 EUR"},{"v":1200,"d":"1,200 EUR"},{"$f":"IF(OR(Mēneša_izdevumu_tabula[[#This Row],[Plānotās izmaksas]]=\"\",Mēneša_izdevumu_tabula[[#This Row],[Faktiskās izmaksas]]=\"\"),\"\",Mēneša_izdevumu_tabula[[#This Row],[Plānotās izmaksas]]-Mēneša_izdevumu_tabula[[#This Row],[Faktiskās izmaksas]])","v":{"v":-200,"d":"-200 EUR"}},{"$f":"Mēneša_izdevumu_tabula[[#This Row],[Faktiskās izmaksas]]","v":1200}]
[null,"Pārtikas preces","Pārtika",{"v":100,"d":"100 EUR"},{"v":120,"d":"120 EUR"},{"$f":"IF(OR(Mēneša_izdevumu_tabula[[#This Row],[Plānotās izmaksas]]=\"\",Mēneša_izdevumu_tabula[[#This Row],[Faktiskās izmaksas]]=\"\"),\"\",Mēneša_izdevumu_tabula[[#This Row],[Plānotās izmaksas]]-Mēneša_izdevumu_tabula[[#This Row],[Faktiskās izmaksas]])","v":{"v":-20,"d":"-20 EUR"}},{"$f":"Mēneša_izdevumu_tabula[[#This Row],[Faktiskās izmaksas]]","v":120}]
[null,"Labdarība 1","Dāvanas un labdarība",{"v":75,"d":"75 EUR"},{"v":100,"d":"100 EUR"},{"$f":"IF(OR(Mēneša_izdevumu_tabula[[#This Row],[Plānotās izmaksas]]=\"\",Mēneša_izdevumu_tabula[[#This Row],[Faktiskās izmaksas]]=\"\"),\"\",Mēneša_izdevumu_tabula[[#This Row],[Plānotās izmaksas]]-Mēneša_izdevumu_tabula[[#This Row],[Faktiskās izmaksas]])","v":{"v":-25,"d":"-25 EUR"}},{"$f":"Mēneša_izdevumu_tabula[[#This Row],[Faktiskās izmaksas]]","v":100}]
[null,"Labdarība 2","Dāvanas un labdarība",{"v":25,"d":"25 EUR"},{"v":25,"d":"25 EUR"},{"$f":"IF(OR(Mēneša_izdevumu_tabula[[#This Row],[Plānotās izmaksas]]=\"\",Mēneša_izdevumu_tabula[[#This Row],[Faktiskās izmaksas]]=\"\"),\"\",Mēneša_izdevumu_tabula[[#This Row],[Plānotās izmaksas]]-Mēneša_izdevumu_tabula[[#This Row],[Faktiskās izmaksas]])","v":{"v":0,"d":"0 EUR"}},{"$f":"Mēneša_izdevumu_tabula[[#This Row],[Faktiskās izmaksas]]","v":25}]
[null,"Dāvana 1","Dāvanas un labdarība",null,null,{"$f":"IF(OR(Mēneša_izdevumu_tabula[[#This Row],[Plānotās izmaksas]]=\"\",Mēneša_izdevumu_tabula[[#This Row],[Faktiskās izmaksas]]=\"\"),\"\",Mēneša_izdevumu_tabula[[#This Row],[Plānotās izmaksas]]-Mēneša_izdevumu_tabula[[#This Row],[Faktiskās izmaksas]])","v":""},{"$f":"Mēneša_izdevumu_tabula[[#This Row],[Faktiskās izmaksas]]","v":0}]
[null,"Dāvana 2","Dāvanas un labdarība",null,null,{"$f":"IF(OR(Mēneša_izdevumu_tabula[[#This Row],[Plānotās izmaksas]]=\"\",Mēneša_izdevumu_tabula[[#This Row],[Faktiskās izmaksas]]=\"\"),\"\",Mēneša_izdevumu_tabula[[#This Row],[Plānotās izmaksas]]-Mēneša_izdevumu_tabula[[#This Row],[Faktiskās izmaksas]])","v":""},{"$f":"Mēneša_izdevumu_tabula[[#This Row],[Faktiskās izmaksas]]","v":0}]
[null,"Kabeļtelevīzija/satelīttelevīzija","Mājoklis",{"v":100,"d":"100 EUR"},{"v":100,"d":"100 EUR"},{"$f":"IF(OR(Mēneša_izdevumu_tabula[[#This Row],[Plānotās izmaksas]]=\"\",Mēneša_izdevumu_tabula[[#This Row],[Faktiskās izmaksas]]=\"\"),\"\",Mēneša_izdevumu_tabula[[#This Row],[Plānotās izmaksas]]-Mēneša_izdevumu_tabula[[#This Row],[Faktiskās izmaksas]])","v":{"v":0,"d":"0 EUR"}},{"$f":"Mēneša_izdevumu_tabula[[#This Row],[Faktiskās izmaksas]]","v":100}]
[null,"Elektrība","Mājoklis",{"v":45,"d":"45 EUR"},{"v":50,"d":"50 EUR"},{"$f":"IF(OR(Mēneša_izdevumu_tabula[[#This Row],[Plānotās izmaksas]]=\"\",Mēneša_izdevumu_tabula[[#This Row],[Faktiskās izmaksas]]=\"\"),\"\",Mēneša_izdevumu_tabula[[#This Row],[Plānotās izmaksas]]-Mēneša_izdevumu_tabula[[#This Row],[Faktiskās izmaksas]])","v":{"v":-5,"d":"-5 EUR"}},{"$f":"Mēneša_izdevumu_tabula[[#This Row],[Faktiskās izmaksas]]","v":50}]
[null,"Gāze","Mājoklis",{"v":300,"d":"300 EUR"},{"v":400,"d":"400 EUR"},{"$f":"IF(OR(Mēneša_izdevumu_tabula[[#This Row],[Plānotās izmaksas]]=\"\",Mēneša_izdevumu_tabula[[#This Row],[Faktiskās izmaksas]]=\"\"),\"\",Mēneša_izdevumu_tabula[[#This Row],[Plānotās izmaksas]]-Mēneša_izdevumu_tabula[[#This Row],[Faktiskās izmaksas]])","v":{"v":-100,"d":"-100 EUR"}},{"$f":"Mēneša_izdevumu_tabula[[#This Row],[Faktiskās izmaksas]]","v":400}]
[null,"Mājas uzkopšanas pakalpojums","Mājoklis",{"v":200,"d":"200 EUR"},null,{"$f":"IF(OR(Mēneša_izdevumu_tabula[[#This Row],[Plānotās izmaksas]]=\"\",Mēneša_izdevumu_tabula[[#This Row],[Faktiskās izmaksas]]=\"\"),\"\",Mēneša_izdevumu_tabula[[#This Row],[Plānotās izmaksas]]-Mēneša_izdevumu_tabula[[#This Row],[Faktiskās izmaksas]])","v":""},{"$f":"Mēneša_izdevumu_tabula[[#This Row],[Faktiskās izmaksas]]","v":0}]
[null,"Uzturēšana","Mājoklis",{"v":200,"d":"200 EUR"},{"v":150,"d":"150 EUR"},{"$f":"IF(OR(Mēneša_izdevumu_tabula[[#This Row],[Plānotās izmaksas]]=\"\",Mēneša_izdevumu_tabula[[#This Row],[Faktiskās izmaksas]]=\"\"),\"\",Mēneša_izdevumu_tabula[[#This Row],[Plānotās izmaksas]]-Mēneša_izdevumu_tabula[[#This Row],[Faktiskās izmaksas]])","v":{"v":50,"d":"50 EUR"}},{"$f":"Mēneša_izdevumu_tabula[[#This Row],[Faktiskās izmaksas]]","v":150}]
[null,"Hipotekārais kredīts vai īres maksa","Mājoklis",{"v":1700,"d":"1,700 EUR"},{"v":1700,"d":"1,700 EUR"},{"$f":"IF(OR(Mēneša_izdevumu_tabula[[#This Row],[Plānotās izmaksas]]=\"\",Mēneša_izdevumu_tabula[[#This Row],[Faktiskās izmaksas]]=\"\"),\"\",Mēneša_izdevumu_tabula[[#This Row],[Plānotās izmaksas]]-Mēneša_izdevumu_tabula[[#This Row],[Faktiskās izmaksas]])","v":{"v":0,"d":"0 EUR"}},{"$f":"Mēneša_izdevumu_tabula[[#This Row],[Faktiskās izmaksas]]","v":1700}]
[null,"Gāze/nafta","Mājoklis",null,null,{"$f":"IF(OR(Mēneša_izdevumu_tabula[[#This Row],[Plānotās izmaksas]]=\"\",Mēneša_izdevumu_tabula[[#This Row],[Faktiskās izmaksas]]=\"\"),\"\",Mēneša_izdevumu_tabula[[#This Row],[Plānotās izmaksas]]-Mēneša_izdevumu_tabula[[#This Row],[Faktiskās izmaksas]])","v":""},{"$f":"Mēneša_izdevumu_tabula[[#This Row],[Faktiskās izmaksas]]","v":0}]
[null,"Tiešsaistes/interneta pakalpojumi","Mājoklis",{"v":100,"d":"100 EUR"},{"v":100,"d":"100 EUR"},{"$f":"IF(OR(Mēneša_izdevumu_tabula[[#This Row],[Plānotās izmaksas]]=\"\",Mēneša_izdevumu_tabula[[#This Row],[Faktiskās izmaksas]]=\"\"),\"\",Mēneša_izdevumu_tabula[[#This Row],[Plānotās izmaksas]]-Mēneša_izdevumu_tabula[[#This Row],[Faktiskās izmaksas]])","v":{"v":0,"d":"0 EUR"}},{"$f":"Mēneša_izdevumu_tabula[[#This Row],[Faktiskās izmaksas]]","v":100}]
[null,"Tālrunis (mobilais)","Mājoklis",{"v":60,"d":"60 EUR"},{"v":60,"d":"60 EUR"},{"$f":"IF(OR(Mēneša_izdevumu_tabula[[#This Row],[Plānotās izmaksas]]=\"\",Mēneša_izdevumu_tabula[[#This Row],[Faktiskās izmaksas]]=\"\"),\"\",Mēneša_izdevumu_tabula[[#This Row],[Plānotās izmaksas]]-Mēneša_izdevumu_tabula[[#This Row],[Faktiskās izmaksas]])","v":{"v":0,"d":"0 EUR"}},{"$f":"Mēneša_izdevumu_tabula[[#This Row],[Faktiskās izmaksas]]","v":60}]
[null,"Tālrunis (mājās)","Mājoklis",{"v":35,"d":"35 EUR"},{"v":39,"d":"39 EUR"},{"$f":"IF(OR(Mēneša_izdevumu_tabula[[#This Row],[Plānotās izmaksas]]=\"\",Mēneša_izdevumu_tabula[[#This Row],[Faktiskās izmaksas]]=\"\"),\"\",Mēneša_izdevumu_tabula[[#This Row],[Plānotās izmaksas]]-Mēneša_izdevumu_tabula[[#This Row],[Faktiskās izmaksas]])","v":{"v":-4,"d":"-4 EUR"}},{"$f":"Mēneša_izdevumu_tabula[[#This Row],[Faktiskās izmaksas]]","v":39}]
[null,"Materiāli","Mājoklis",{"v":40,"d":"40 EUR"},{"v":55,"d":"55 EUR"},{"$f":"IF(OR(Mēneša_izdevumu_tabula[[#This Row],[Plānotās izmaksas]]=\"\",Mēneša_izdevumu_tabula[[#This Row],[Faktiskās izmaksas]]=\"\"),\"\",Mēneša_izdevumu_tabula[[#This Row],[Plānotās izmaksas]]-Mēneša_izdevumu_tabula[[#This Row],[Faktiskās izmaksas]])","v":{"v":-15,"d":"-15 EUR"}},{"$f":"Mēneša_izdevumu_tabula[[#This Row],[Faktiskās izmaksas]]","v":55}]
[null,"Atkritumu savākšana un pārstrāde","Mājoklis",{"v":25,"d":"25 EUR"},{"v":22,"d":"22 EUR"},{"$f":"IF(OR(Mēneša_izdevumu_tabula[[#This Row],[Plānotās izmaksas]]=\"\",Mēneša_izdevumu_tabula[[#This Row],[Faktiskās izmaksas]]=\"\"),\"\",Mēneša_izdevumu_tabula[[#This Row],[Plānotās izmaksas]]-Mēneša_izdevumu_tabula[[#This Row],[Faktiskās izmaksas]])","v":{"v":3,"d":"3 EUR"}},{"$f":"Mēneša_izdevumu_tabula[[#This Row],[Faktiskās izmaksas]]","v":22}]
[null,"Ūdens un kanalizācija","Mājoklis",{"v":25,"d":"25 EUR"},{"v":26,"d":"26 EUR"},{"$f":"IF(OR(Mēneša_izdevumu_tabula[[#This Row],[Plānotās izmaksas]]=\"\",Mēneša_izdevumu_tabula[[#This Row],[Faktiskās izmaksas]]=\"\"),\"\",Mēneša_izdevumu_tabula[[#This Row],[Plānotās izmaksas]]-Mēneša_izdevumu_tabula[[#This Row],[Faktiskās izmaksas]])","v":{"v":-1,"d":"-1 EUR"}},{"$f":"Mēneša_izdevumu_tabula[[#This Row],[Faktiskās izmaksas]]","v":26}]
[null,"Veselība","Apdrošināšana",{"v":400,"d":"400 EUR"},{"v":400,"d":"400 EUR"},{"$f":"IF(OR(Mēneša_izdevumu_tabula[[#This Row],[Plānotās izmaksas]]=\"\",Mēneša_izdevumu_tabula[[#This Row],[Faktiskās izmaksas]]=\"\"),\"\",Mēneša_izdevumu_tabula[[#This Row],[Plānotās izmaksas]]-Mēneša_izdevumu_tabula[[#This Row],[Faktiskās izmaksas]])","v":{"v":0,"d":"0 EUR"}},{"$f":"Mēneša_izdevumu_tabula[[#This Row],[Faktiskās izmaksas]]","v":400}]
[null,"Mājas","Apdrošināšana",{"v":400,"d":"400 EUR"},{"v":400,"d":"400 EUR"},{"$f":"IF(OR(Mēneša_izdevumu_tabula[[#This Row],[Plānotās izmaksas]]=\"\",Mēneša_izdevumu_tabula[[#This Row],[Faktiskās izmaksas]]=\"\"),\"\",Mēneša_izdevumu_tabula[[#This Row],[Plānotās izmaksas]]-Mēneša_izdevumu_tabula[[#This Row],[Faktiskās izmaksas]])","v":{"v":0,"d":"0 EUR"}},{"$f":"Mēneša_izdevumu_tabula[[#This Row],[Faktiskās izmaksas]]","v":400}]
[null,"Dzīvība","Apdrošināšana",{"v":100,"d":"100 EUR"},{"v":100,"d":"100 EUR"},{"$f":"IF(OR(Mēneša_izdevumu_tabula[[#This Row],[Plānotās izmaksas]]=\"\",Mēneša_izdevumu_tabula[[#This Row],[Faktiskās izmaksas]]=\"\"),\"\",Mēneša_izdevumu_tabula[[#This Row],[Plānotās izmaksas]]-Mēneša_izdevumu_tabula[[#This Row],[Faktiskās izmaksas]])","v":{"v":0,"d":"0 EUR"}},{"$f":"Mēneša_izdevumu_tabula[[#This Row],[Faktiskās izmaksas]]","v":100}]
[null,"Kredītkarte 1","Aizdevumi",{"v":200,"d":"200 EUR"},{"v":200,"d":"200 EUR"},{"$f":"IF(OR(Mēneša_izdevumu_tabula[[#This Row],[Plānotās izmaksas]]=\"\",Mēneša_izdevumu_tabula[[#This Row],[Faktiskās izmaksas]]=\"\"),\"\",Mēneša_izdevumu_tabula[[#This Row],[Plānotās izmaksas]]-Mēneša_izdevumu_tabula[[#This Row],[Faktiskās izmaksas]])","v":{"v":0,"d":"0 EUR"}},{"$f":"Mēneša_izdevumu_tabula[[#This Row],[Faktiskās izmaksas]]","v":200}]
[null,"Kredītkarte 2","Aizdevumi",null,null,{"$f":"IF(OR(Mēneša_izdevumu_tabula[[#This Row],[Plānotās izmaksas]]=\"\",Mēneša_izdevumu_tabula[[#This Row],[Faktiskās izmaksas]]=\"\"),\"\",Mēneša_izdevumu_tabula[[#This Row],[Plānotās izmaksas]]-Mēneša_izdevumu_tabula[[#This Row],[Faktiskās izmaksas]])","v":""},{"$f":"Mēneša_izdevumu_tabula[[#This Row],[Faktiskās izmaksas]]","v":0}]
[null,"Kredītkarte 3","Aizdevumi",null,null,{"$f":"IF(OR(Mēneša_izdevumu_tabula[[#This Row],[Plānotās izmaksas]]=\"\",Mēneša_izdevumu_tabula[[#This Row],[Faktiskās izmaksas]]=\"\"),\"\",Mēneša_izdevumu_tabula[[#This Row],[Plānotās izmaksas]]-Mēneša_izdevumu_tabula[[#This Row],[Faktiskās izmaksas]])","v":""},{"$f":"Mēneša_izdevumu_tabula[[#This Row],[Faktiskās izmaksas]]","v":0}]
[null,"Personisks","Aizdevumi",null,null,{"$f":"IF(OR(Mēneša_izdevumu_tabula[[#This Row],[Plānotās izmaksas]]=\"\",Mēneša_izdevumu_tabula[[#This Row],[Faktiskās izmaksas]]=\"\"),\"\",Mēneša_izdevumu_tabula[[#This Row],[Plānotās izmaksas]]-Mēneša_izdevumu_tabula[[#This Row],[Faktiskās izmaksas]])","v":""},{"$f":"Mēneša_izdevumu_tabula[[#This Row],[Faktiskās izmaksas]]","v":0}]
[null,"Mācību","Aizdevumi",null,null,{"$f":"IF(OR(Mēneša_izdevumu_tabula[[#This Row],[Plānotās izmaksas]]=\"\",Mēneša_izdevumu_tabula[[#This Row],[Faktiskās izmaksas]]=\"\"),\"\",Mēneša_izdevumu_tabula[[#This Row],[Plānotās izmaksas]]-Mēneša_izdevumu_tabula[[#This Row],[Faktiskās izmaksas]])","v":""},{"$f":"Mēneša_izdevumu_tabula[[#This Row],[Faktiskās izmaksas]]","v":0}]
[null,"Apģērbs","Personiskā higiēna",{"v":150,"d":"150 EUR"},{"v":140,"d":"140 EUR"},{"$f":"IF(OR(Mēneša_izdevumu_tabula[[#This Row],[Plānotās izmaksas]]=\"\",Mēneša_izdevumu_tabula[[#This Row],[Faktiskās izmaksas]]=\"\"),\"\",Mēneša_izdevumu_tabula[[#This Row],[Plānotās izmaksas]]-Mēneša_izdevumu_tabula[[#This Row],[Faktiskās izmaksas]])","v":{"v":10,"d":"10 EUR"}},{"$f":"Mēneša_izdevumu_tabula[[#This Row],[Faktiskās izmaksas]]","v":140}]
[null,"Ķīmiskā tīrītava","Personiskā higiēna",null,null,{"$f":"IF(OR(Mēneša_izdevumu_tabula[[#This Row],[Plānotās izmaksas]]=\"\",Mēneša_izdevumu_tabula[[#This Row],[Faktiskās izmaksas]]=\"\"),\"\",Mēneša_izdevumu_tabula[[#This Row],[Plānotās izmaksas]]-Mēneša_izdevumu_tabula[[#This Row],[Faktiskās izmaksas]])","v":""},{"$f":"Mēneša_izdevumu_tabula[[#This Row],[Faktiskās izmaksas]]","v":0}]
[null,"Mati/nagi","Personiskā higiēna",null,null,{"$f":"IF(OR(Mēneša_izdevumu_tabula[[#This Row],[Plānotās izmaksas]]=\"\",Mēneša_izdevumu_tabula[[#This Row],[Faktiskās izmaksas]]=\"\"),\"\",Mēneša_izdevumu_tabula[[#This Row],[Plānotās izmaksas]]-Mēneša_izdevumu_tabula[[#This Row],[Faktiskās izmaksas]])","v":""},{"$f":"Mēneša_izdevumu_tabula[[#This Row],[Faktiskās izmaksas]]","v":0}]
[null,"Sporta klubs","Personiskā higiēna",null,null,{"$f":"IF(OR(Mēneša_izdevumu_tabula[[#This Row],[Plānotās izmaksas]]=\"\",Mēneša_izdevumu_tabula[[#This Row],[Faktiskās izmaksas]]=\"\"),\"\",Mēneša_izdevumu_tabula[[#This Row],[Plānotās izmaksas]]-Mēneša_izdevumu_tabula[[#This Row],[Faktiskās izmaksas]])","v":""},{"$f":"Mēneša_izdevumu_tabula[[#This Row],[Faktiskās izmaksas]]","v":0}]
[null,"Medikamenti","Personiskā higiēna",null,null,{"$f":"IF(OR(Mēneša_izdevumu_tabula[[#This Row],[Plānotās izmaksas]]=\"\",Mēneša_izdevumu_tabula[[#This Row],[Faktiskās izmaksas]]=\"\"),\"\",Mēneša_izdevumu_tabula[[#This Row],[Plānotās izmaksas]]-Mēneša_izdevumu_tabula[[#This Row],[Faktiskās izmaksas]])","v":""},{"$f":"Mēneša_izdevumu_tabula[[#This Row],[Faktiskās izmaksas]]","v":0}]
[null,"Pārtika","Mājdzīvnieki",{"v":150,"d":"150 EUR"},{"v":75,"d":"75 EUR"},{"$f":"IF(OR(Mēneša_izdevumu_tabula[[#This Row],[Plānotās izmaksas]]=\"\",Mēneša_izdevumu_tabula[[#This Row],[Faktiskās izmaksas]]=\"\"),\"\",Mēneša_izdevumu_tabula[[#This Row],[Plānotās izmaksas]]-Mēneša_izdevumu_tabula[[#This Row],[Faktiskās izmaksas]])","v":{"v":75,"d":"75 EUR"}},{"$f":"Mēneša_izdevumu_tabula[[#This Row],[Faktiskās izmaksas]]","v":75}]
[null,"Kopšana","Mājdzīvnieki",{"v":20,"d":"20 EUR"},{"v":25,"d":"25 EUR"},{"$f":"IF(OR(Mēneša_izdevumu_tabula[[#This Row],[Plānotās izmaksas]]=\"\",Mēneša_izdevumu_tabula[[#This Row],[Faktiskās izmaksas]]=\"\"),\"\",Mēneša_izdevumu_tabula[[#This Row],[Plānotās izmaksas]]-Mēneša_izdevumu_tabula[[#This Row],[Faktiskās izmaksas]])","v":{"v":-5,"d":"-5 EUR"}},{"$f":"Mēneša_izdevumu_tabula[[#This Row],[Faktiskās izmaksas]]","v":25}]
[null,"Medikamenti","Mājdzīvnieki",null,null,{"$f":"IF(OR(Mēneša_izdevumu_tabula[[#This Row],[Plānotās izmaksas]]=\"\",Mēneša_izdevumu_tabula[[#This Row],[Faktiskās izmaksas]]=\"\"),\"\",Mēneša_izdevumu_tabula[[#This Row],[Plānotās izmaksas]]-Mēneša_izdevumu_tabula[[#This Row],[Faktiskās izmaksas]])","v":""},{"$f":"Mēneša_izdevumu_tabula[[#This Row],[Faktiskās izmaksas]]","v":0}]
[null,"Rotaļlietas","Mājdzīvnieki",null,null,{"$f":"IF(OR(Mēneša_izdevumu_tabula[[#This Row],[Plānotās izmaksas]]=\"\",Mēneša_izdevumu_tabula[[#This Row],[Faktiskās izmaksas]]=\"\"),\"\",Mēneša_izdevumu_tabula[[#This Row],[Plānotās izmaksas]]-Mēneša_izdevumu_tabula[[#This Row],[Faktiskās izmaksas]])","v":""},{"$f":"Mēneša_izdevumu_tabula[[#This Row],[Faktiskās izmaksas]]","v":0}]
[null,"Ieguldījumu konts","Ietaupījumi",{"v":200,"d":"200 EUR"},{"v":200,"d":"200 EUR"},{"$f":"IF(OR(Mēneša_izdevumu_tabula[[#This Row],[Plānotās izmaksas]]=\"\",Mēneša_izdevumu_tabula[[#This Row],[Faktiskās izmaksas]]=\"\"),\"\",Mēneša_izdevumu_tabula[[#This Row],[Plānotās izmaksas]]-Mēneša_izdevumu_tabula[[#This Row],[Faktiskās izmaksas]])","v":{"v":0,"d":"0 EUR"}},{"$f":"Mēneša_izdevumu_tabula[[#This Row],[Faktiskās izmaksas]]","v":200}]
[null,"Pensijas konts","Ietaupījumi",null,null,{"$f":"IF(OR(Mēneša_izdevumu_tabula[[#This Row],[Plānotās izmaksas]]=\"\",Mēneša_izdevumu_tabula[[#This Row],[Faktiskās izmaksas]]=\"\"),\"\",Mēneša_izdevumu_tabula[[#This Row],[Plānotās izmaksas]]-Mēneša_izdevumu_tabula[[#This Row],[Faktiskās izmaksas]])","v":""},{"$f":"Mēneša_izdevumu_tabula[[#This Row],[Faktiskās izmaksas]]","v":0}]
[null,"Federālie","Nodokļi",{"v":300,"d":"300 EUR"},{"v":300,"d":"300 EUR"},{"$f":"IF(OR(Mēneša_izdevumu_tabula[[#This Row],[Plānotās izmaksas]]=\"\",Mēneša_izdevumu_tabula[[#This Row],[Faktiskās izmaksas]]=\"\"),\"\",Mēneša_izdevumu_tabula[[#This Row],[Plānotās izmaksas]]-Mēneša_izdevumu_tabula[[#This Row],[Faktiskās izmaksas]])","v":{"v":0,"d":"0 EUR"}},{"$f":"Mēneša_izdevumu_tabula[[#This Row],[Faktiskās izmaksas]]","v":300}]
[null,"Lokālā","Nodokļi",null,null,{"$f":"IF(OR(Mēneša_izdevumu_tabula[[#This Row],[Plānotās izmaksas]]=\"\",Mēneša_izdevumu_tabula[[#This Row],[Faktiskās izmaksas]]=\"\"),\"\",Mēneša_izdevumu_tabula[[#This Row],[Plānotās izmaksas]]-Mēneša_izdevumu_tabula[[#This Row],[Faktiskās izmaksas]])","v":""},{"$f":"Mēneša_izdevumu_tabula[[#This Row],[Faktiskās izmaksas]]","v":0}]
[null,"Valsts","Nodokļi",null,null,{"$f":"IF(OR(Mēneša_izdevumu_tabula[[#This Row],[Plānotās izmaksas]]=\"\",Mēneša_izdevumu_tabula[[#This Row],[Faktiskās izmaksas]]=\"\"),\"\",Mēneša_izdevumu_tabula[[#This Row],[Plānotās izmaksas]]-Mēneša_izdevumu_tabula[[#This Row],[Faktiskās izmaksas]])","v":""},{"$f":"Mēneša_izdevumu_tabula[[#This Row],[Faktiskās izmaksas]]","v":0}]
[null,"Maksa par braucienu ar autobusu/taksometru","Transports",{"v":100,"d":"100 EUR"},{"v":150,"d":"150 EUR"},{"$f":"IF(OR(Mēneša_izdevumu_tabula[[#This Row],[Plānotās izmaksas]]=\"\",Mēneša_izdevumu_tabula[[#This Row],[Faktiskās izmaksas]]=\"\"),\"\",Mēneša_izdevumu_tabula[[#This Row],[Plānotās izmaksas]]-Mēneša_izdevumu_tabula[[#This Row],[Faktiskās izmaksas]])","v":{"v":-50,"d":"-50 EUR"}},{"$f":"Mēneša_izdevumu_tabula[[#This Row],[Faktiskās izmaksas]]","v":150}]
[null,"Degviela","Transports",{"v":450,"d":"450 EUR"},{"v":400,"d":"400 EUR"},{"$f":"IF(OR(Mēneša_izdevumu_tabula[[#This Row],[Plānotās izmaksas]]=\"\",Mēneša_izdevumu_tabula[[#This Row],[Faktiskās izmaksas]]=\"\"),\"\",Mēneša_izdevumu_tabula[[#This Row],[Plānotās izmaksas]]-Mēneša_izdevumu_tabula[[#This Row],[Faktiskās izmaksas]])","v":{"v":50,"d":"50 EUR"}},{"$f":"Mēneša_izdevumu_tabula[[#This Row],[Faktiskās izmaksas]]","v":400}]
[null,"Apdrošināšana","Transports",{"v":300,"d":"300 EUR"},{"v":300,"d":"300 EUR"},{"$f":"IF(OR(Mēneša_izdevumu_tabula[[#This Row],[Plānotās izmaksas]]=\"\",Mēneša_izdevumu_tabula[[#This Row],[Faktiskās izmaksas]]=\"\"),\"\",Mēneša_izdevumu_tabula[[#This Row],[Plānotās izmaksas]]-Mēneša_izdevumu_tabula[[#This Row],[Faktiskās izmaksas]])","v":{"v":0,"d":"0 EUR"}},{"$f":"Mēneša_izdevumu_tabula[[#This Row],[Faktiskās izmaksas]]","v":300}]
[null,"Licencēšana ","Transports",{"v":25,"d":"25 EUR"},{"v":25,"d":"25 EUR"},{"$f":"IF(OR(Mēneša_izdevumu_tabula[[#This Row],[Plānotās izmaksas]]=\"\",Mēneša_izdevumu_tabula[[#This Row],[Faktiskās izmaksas]]=\"\"),\"\",Mēneša_izdevumu_tabula[[#This Row],[Plānotās izmaksas]]-Mēneša_izdevumu_tabula[[#This Row],[Faktiskās izmaksas]])","v":{"v":0,"d":"0 EUR"}},{"$f":"Mēneša_izdevumu_tabula[[#This Row],[Faktiskās izmaksas]]","v":25}]
[null,"Uzturēšana","Transports",{"v":100,"d":"100 EUR"},{"v":50,"d":"50 EUR"},{"$f":"IF(OR(Mēneša_izdevumu_tabula[[#This Row],[Plānotās izmaksas]]=\"\",Mēneša_izdevumu_tabula[[#This Row],[Faktiskās izmaksas]]=\"\"),\"\",Mēneša_izdevumu_tabula[[#This Row],[Plānotās izmaksas]]-Mēneša_izdevumu_tabula[[#This Row],[Faktiskās izmaksas]])","v":{"v":50,"d":"50 EUR"}},{"$f":"Mēneša_izdevumu_tabula[[#This Row],[Faktiskās izmaksas]]","v":50}]
[null,"Izdevumi par autostāvvietu","Transports",null,null,{"$f":"IF(OR(Mēneša_izdevumu_tabula[[#This Row],[Plānotās izmaksas]]=\"\",Mēneša_izdevumu_tabula[[#This Row],[Faktiskās izmaksas]]=\"\"),\"\",Mēneša_izdevumu_tabula[[#This Row],[Plānotās izmaksas]]-Mēneša_izdevumu_tabula[[#This Row],[Faktiskās izmaksas]])","v":""},{"$f":"Mēneša_izdevumu_tabula[[#This Row],[Faktiskās izmaksas]]","v":0}]
[null,"Maksājums par transportlīdzekli","Transports",{"v":450,"d":"450 EUR"},{"v":450,"d":"450 EUR"},{"$f":"IF(OR(Mēneša_izdevumu_tabula[[#This Row],[Plānotās izmaksas]]=\"\",Mēneša_izdevumu_tabula[[#This Row],[Faktiskās izmaksas]]=\"\"),\"\",Mēneša_izdevumu_tabula[[#This Row],[Plānotās izmaksas]]-Mēneša_izdevumu_tabula[[#This Row],[Faktiskās izmaksas]])","v":{"v":0,"d":"0 EUR"}},{"$f":"Mēneša_izdevumu_tabula[[#This Row],[Faktiskās izmaksas]]","v":450}]

{"sheet":"Papildu dati","index":3,"n_rows":17,"n_cols":6,"rows_kept":17}
[{"$nulls":5}," "]
[null,"Budžeta diagrammas rakurstabula",null,null,"Kategoriju saraksts"]
[]
[null,"Kategorijas","Izmaksas ",null,"Lai pievienotu kategoriju, ierakstiet tālāk"]
[null,"Mājdzīvnieki",{"v":100,"d":"100 EUR"},null,"Bērni"]
[null,"Dāvanas un labdarība",{"v":125,"d":"125 EUR"},null,"Izklaide"]
[null,"Bērni",{"v":140,"d":"140 EUR"},null,"Pārtika"]
[null,"Personiskā higiēna",{"v":140,"d":"140 EUR"},null,"Dāvanas un labdarība"]
[null,"Ietaupījumi",{"v":200,"d":"200 EUR"},null,"Mājoklis"]
[null,"Aizdevumi",{"v":200,"d":"200 EUR"},null,"Apdrošināšana"]
[null,"Nodokļi",{"v":300,"d":"300 EUR"},null,"Aizdevumi"]
[null,"Izklaide",{"v":358,"d":"358 EUR"},null,"Personiskā higiēna"]
[null,"Apdrošināšana",{"v":900,"d":"900 EUR"},null,"Mājdzīvnieki"]
[null,"Pārtika",{"v":1320,"d":"1,320 EUR"},null,"Ietaupījumi"]
[null,"Transports",{"v":1375,"d":"1,375 EUR"},null,"Nodokļi"]
[null,"Mājoklis",{"v":2702,"d":"2,702 EUR"},null,"Transports"]
[null,"Gala summa",{"v":7860,"d":"7,860 EUR"}]